[Event "*** Titled Tuesday 3|2 Blitz"]
[Site "Chess.com"]
[Date "2015.02.24"]
[Round "8"]
[White "MattyDPerrine"]
[Black "monika84"]
[Result "0-1"]
[WhiteElo "2043"]
[BlackElo "2042"]
[TimeControl "180+2"]
[EndTime "12:48:03 PST"]
[Termination "monika84 won by resignation"]

1. d4 {[%clk 0:03:00]} 1... Nf6 {[%clk 0:02:57]} 2. c4 {[%clk 0:02:58.5]} 2...
g6 {[%clk 0:02:58.5]} 3. Nf3 {[%clk 0:02:59.5]} 3... d6 {[%clk 0:02:57.1]} 4. g3
{[%clk 0:03:00.4]} 4... Bg7 {[%clk 0:02:59]} 5. Bg2 {[%clk 0:03:01.5]} 5... O-O
{[%clk 0:03:00.9]} 6. O-O {[%clk 0:03:02.6]} 6... Nbd7 {[%clk 0:03:02.3]} 7. Nc3
{[%clk 0:03:03.8]} 7... Re8 {[%clk 0:03:03.9]} 8. e4 {[%clk 0:03:04.8]} 8... c6
{[%clk 0:03:05.5]} 9. h3 {[%clk 0:03:05.4]} 9... e5 {[%clk 0:03:06.3]} 10. Re1
{[%clk 0:03:06.9]} 10... Qc7 {[%clk 0:03:06.1]} 11. Qc2 {[%clk 0:03:07.1]} 11...
a6 {[%clk 0:03:07]} 12. dxe5 {[%clk 0:02:15.6]} 12... dxe5 {[%clk 0:03:07.2]}
13. Be3 {[%clk 0:02:13.2]} 13... b5 {[%clk 0:03:02]} 14. Rad1 {[%clk 0:01:49.3]}
14... b4 {[%clk 0:02:52.9]} 15. Na4 {[%clk 0:01:24.8]} 15... Qa5 {[%clk
0:02:40.2]} 16. b3 {[%clk 0:01:02.8]} 16... Bb7 {[%clk 0:02:32.6]} 17. c5 {[%clk
0:00:58.6]} 17... Qc7 {[%clk 0:02:27.2]} 18. Nd2 {[%clk 0:00:54.8]} 18... a5
{[%clk 0:02:25]} 19. Nc4 {[%clk 0:00:54.5]} 19... Ba6 {[%clk 0:02:23.6]} 20. Nd6
{[%clk 0:00:50.1]} 20... Red8 {[%clk 0:02:23.2]} 21. Bf1 {[%clk 0:00:35.1]}
21... Bxf1 {[%clk 0:02:20.2]} 22. Kxf1 {[%clk 0:00:35]} 22... Ne8 {[%clk
0:02:21.5]} 23. Qc4 {[%clk 0:00:21.5]} 23... Nxd6 {[%clk 0:02:15.8]} 24. cxd6
{[%clk 0:00:17.6]} 24... Qb7 {[%clk 0:02:11]} 25. Rc1 {[%clk 0:00:10.9]} 25...
Qb5 {[%clk 0:02:09.7]} 26. Kg2 {[%clk 0:00:11.1]} 26... Rac8 {[%clk 0:02:03.5]}
27. Nc5 {[%clk 0:00:09.9]} 27... Qxc4 {[%clk 0:01:50]} 28. Rxc4 {[%clk
0:00:11.8]} 28... Bf8 {[%clk 0:01:50.7]} 29. Nb7 {[%clk 0:00:11]} 29... Re8
{[%clk 0:01:50.3]} 30. Nxa5 {[%clk 0:00:12.4]} 30... Bxd6 {[%clk 0:01:51.2]} 31.
Rxc6 {[%clk 0:00:13.6]} 31... Rxc6 {[%clk 0:01:46.7]} 32. Nxc6 {[%clk
0:00:15.5]} 32... Ra8 {[%clk 0:01:47.4]} 33. Re2 {[%clk 0:00:16.6]} 33... Bc5
{[%clk 0:01:46.3]} 34. Bxc5 {[%clk 0:00:16.6]} 34... Nxc5 {[%clk 0:01:47.3]} 35.
Nxe5 {[%clk 0:00:18.1]} 35... Re8 {[%clk 0:01:45.2]} 36. Nc6 {[%clk 0:00:19]}
36... Nd3 {[%clk 0:01:38.9]} 37. Re3 {[%clk 0:00:19.7]} 37... Nc1 {[%clk
0:01:35.8]} 38. Nxb4 {[%clk 0:00:20.1]} 38... Rb8 {[%clk 0:01:36.2]} 39. a3
{[%clk 0:00:18.5]} 39... Ra8 {[%clk 0:01:35.5]} 40. Re1 {[%clk 0:00:19.1]} 40...
Nxb3 {[%clk 0:01:35.6]} 41. Nd5 {[%clk 0:00:19.1]} 41... Nc5 {[%clk 0:01:30.1]}
42. Re3 {[%clk 0:00:16.4]} 42... Ra4 {[%clk 0:01:31.2]} 43. f3 {[%clk 0:00:17]}
43... Kg7 {[%clk 0:01:32.6]} 44. Rc3 {[%clk 0:00:16.5]} 44... Ne6 {[%clk
0:01:32]} 45. Kf2 {[%clk 0:00:17.2]} 45... Nd4 {[%clk 0:01:32.9]} 46. Ke3 {[%clk
0:00:13.6]} 46... Nb5 {[%clk 0:01:32.4]} 47. Rb3 {[%clk 0:00:14.5]} 47... Nxa3
{[%clk 0:01:31.8]} 48. Rb7 {[%clk 0:00:15.3]} 48... Nc4+ {[%clk 0:01:31.1]} 49.
Kf4 {[%clk 0:00:16.4]} 49... Nd6 {[%clk 0:01:28.5]} 50. Rd7 {[%clk 0:00:16.8]}
50... Nb5 {[%clk 0:01:26]} 51. Nc7 {[%clk 0:00:17]} 51... Nc3 {[%clk 0:01:17.7]}
52. Ne8+ {[%clk 0:00:16.8]} 52... Kf8 {[%clk 0:01:18]} 53. Nf6 {[%clk
0:00:17.9]} 53... Kg7 {[%clk 0:01:14.1]} 54. Nd5 {[%clk 0:00:18.8]} 54... Ne2+
{[%clk 0:01:12.1]} 55. Kg4 {[%clk 0:00:17.5]} 55... h5+ {[%clk 0:01:13.2]} 56.
Kh4 {[%clk 0:00:18.3]} 56... Ng1 {[%clk 0:01:14.2]} 57. g4 {[%clk 0:00:13.9]}
57... Nxf3+ {[%clk 0:01:12.3]} 58. Kg3 {[%clk 0:00:15]} 58... Ne5 {[%clk
0:01:12.5]} 59. Re7 {[%clk 0:00:16.2]} 59... Rxe4 {[%clk 0:01:05.2]} 60. gxh5
{[%clk 0:00:17.4]} 60... gxh5 {[%clk 0:01:05.3]} 61. Rb7 {[%clk 0:00:16.6]}
61... Ng6 {[%clk 0:01:02.1]} 62. Rb3 {[%clk 0:00:14.5]} 62... Rd4 {[%clk
0:01:03.3]} 63. Ne3 {[%clk 0:00:15.3]} 63... Re4 {[%clk 0:01:03.3]} 64. Nf5+
{[%clk 0:00:16.4]} 64... Kf6 {[%clk 0:01:04.7]} 65. Ne3 {[%clk 0:00:17.9]} 65...
Ne5 {[%clk 0:01:03.3]} 66. Nd5+ {[%clk 0:00:18.3]} 66... Ke6 {[%clk 0:01:01.9]}
67. Nf4+ {[%clk 0:00:18.2]} 67... Kf5 {[%clk 0:01:01.8]} 68. Nd5 {[%clk
0:00:19.5]} 68... Kg5 {[%clk 0:01:00.2]} 69. Ne3 {[%clk 0:00:15.7]} 69... h4+
{[%clk 0:01:01]} 70. Kf2 {[%clk 0:00:16.7]} 70... f5 {[%clk 0:01:01.4]} 71. Rb8
{[%clk 0:00:16]} 71... f4 {[%clk 0:00:57]} 72. Rg8+ {[%clk 0:00:16.7]} 72... Ng6
{[%clk 0:00:58.3]} 73. Ng2 {[%clk 0:00:15.6]} 73... Kf5 {[%clk 0:00:54.7]} 74.
Rg7 {[%clk 0:00:10.9]} 74... Kf6 {[%clk 0:00:55.3]} 75. Rg8 {[%clk 0:00:11.6]}
75... Kf7 {[%clk 0:00:56.3]} 76. Ra8 {[%clk 0:00:12.5]} 76... Kf6 {[%clk
0:00:53]} 77. Ra5 {[%clk 0:00:13.4]} 77... Re5 {[%clk 0:00:51.2]} 78. Ra6+
{[%clk 0:00:14.1]} 78... Kf5 {[%clk 0:00:50.5]} 79. Ra7 {[%clk 0:00:15.1]} 79...
Rd5 {[%clk 0:00:44.9]} 80. Rf7+ {[%clk 0:00:14.1]} 80... Ke5 {[%clk 0:00:39.5]}
81. Ra7 {[%clk 0:00:12.5]} 81... Rd6 {[%clk 0:00:38.6]} 82. Ra5+ {[%clk
0:00:13]} 82... Rd5 {[%clk 0:00:38.7]} 83. Ra2 {[%clk 0:00:14.9]} 83... Ke4
{[%clk 0:00:38.2]} 84. Re2+ {[%clk 0:00:15.4]} 84... Kf5 {[%clk 0:00:37.7]} 85.
Ra2 {[%clk 0:00:16.2]} 85... Kg5 {[%clk 0:00:37]} 86. Ra4 {[%clk 0:00:15.8]}
86... Rf5 {[%clk 0:00:35]} 87. Re4 {[%clk 0:00:14.4]} 87... Ne5 {[%clk
0:00:35.2]} 88. Ra4 {[%clk 0:00:11]} 88... Nd3+ {[%clk 0:00:32.1]} 89. Kf3
{[%clk 0:00:11.7]} 89... Ne5+ {[%clk 0:00:31.3]} 90. Kf2 {[%clk 0:00:13]} 90...
f3 {[%clk 0:00:32.6]} 91. Nxh4 {[%clk 0:00:13.5]} 91... Rf4 {[%clk 0:00:26.2]}
92. Rxf4 {[%clk 0:00:14]} 92... Kxf4 {[%clk 0:00:24.7]} 93. Nxf3 {[%clk
0:00:15.1]} 93... Nxf3 {[%clk 0:00:24.9]} 94. Kg2 {[%clk 0:00:14.7]} 94... Nh4+
{[%clk 0:00:24.8]} 95. Kf2 {[%clk 0:00:15.4]} 95... Kg5 {[%clk 0:00:26.4]} 96.
Kg3 {[%clk 0:00:16.4]} 0-1

[Event "*** Titled Tuesday 3|2 Blitz"]
[Site "Chess.com"]
[Date "2015.02.24"]
[Round "9"]
[White "jcibarra"]
[Black "GeorgMeier"]
[Result "1/2-1/2"]
[WhiteElo "2540"]
[BlackElo "2675"]
[TimeControl "180+2"]
[EndTime "12:53:49 PST"]
[Termination "Game drawn by agreement"]

1. e4 {[%clk 0:03:00]} 1... e6 {[%clk 0:02:59.5]} 2. d4 {[%clk 0:03:01.1]} 2...
d5 {[%clk 0:03:01]} 3. Nd2 {[%clk 0:03:02.6]} 3... dxe4 {[%clk 0:03:02.1]} 4.
Nxe4 {[%clk 0:03:03.9]} 4... Nd7 {[%clk 0:03:04]} 5. Bd3 {[%clk 0:03:02.3]} 5...
Ngf6 {[%clk 0:03:05.4]} 6. Qe2 {[%clk 0:03:03.9]} 6... c5 {[%clk 0:03:06.1]} 7.
Nxf6+ {[%clk 0:03:04.8]} 7... Nxf6 {[%clk 0:03:08]} 8. dxc5 {[%clk 0:03:06.3]}
8... Bxc5 {[%clk 0:03:09.9]} 9. Bg5 {[%clk 0:03:07]} 9... Qa5+ {[%clk
0:02:59.7]} 10. Bd2 {[%clk 0:03:07.3]} 10... Qb6 {[%clk 0:02:59.2]} 11. O-O-O
{[%clk 0:03:07.8]} 11... O-O {[%clk 0:03:00.1]} 12. Nf3 {[%clk 0:03:07.3]} 12...
e5 {[%clk 0:02:55.1]} 13. Ng5 {[%clk 0:02:43.7]} 13... Re8 {[%clk 0:02:05.1]}
1/2-1/2

[Event "*** Titled Tuesday 3|2 Blitz"]
[Site "Chess.com"]
[Date "2015.02.24"]
[Round "9"]
[White "juniortay"]
[Black "Colombiano07"]
[Result "1-0"]
[WhiteElo "2205"]
[BlackElo "2012"]
[TimeControl "180+2"]
[EndTime "12:53:50 PST"]
[Termination "juniortay won by resignation"]

1. e4 {[%clk 0:03:00]} 1... c5 {[%clk 0:02:58.9]} 2. Nf3 {[%clk 0:02:59.5]} 2...
Nc6 {[%clk 0:02:59.6]} 3. b4 {[%clk 0:03:00.4]} 3... cxb4 {[%clk 0:03:00]} 4. d4
{[%clk 0:03:01.6]} 4... d5 {[%clk 0:03:01.3]} 5. exd5 {[%clk 0:03:03.5]} 5...
Qxd5 {[%clk 0:03:02.5]} 6. c4 {[%clk 0:03:05.4]} 6... bxc3 {[%clk 0:03:04.2]} 7.
Nxc3 {[%clk 0:03:07]} 7... Qa5 {[%clk 0:03:05.3]} 8. d5 {[%clk 0:03:08.7]} 8...
Qxc3+ {[%clk 0:02:59.8]} 9. Bd2 {[%clk 0:03:09.2]} 9... Qa3 {[%clk 0:02:56.1]}
10. dxc6 {[%clk 0:03:11.1]} 10... bxc6 {[%clk 0:02:56.9]} 11. Rc1 {[%clk
0:03:08.7]} 11... Nf6 {[%clk 0:02:55.6]} 12. Rxc6 {[%clk 0:03:04.4]} 12... e6
{[%clk 0:02:56.5]} 13. Bb5 {[%clk 0:03:02.8]} 13... Bd7 {[%clk 0:02:57.1]} 14.
Ne5 {[%clk 0:03:03.7]} 14... Bd6 {[%clk 0:02:44]} 15. Nc4 {[%clk 0:02:52.9]}
15... Bxc6 {[%clk 0:02:04.5]} 16. Bxc6+ {[%clk 0:02:51.9]} 16... Ke7 {[%clk
0:02:05.2]} 17. Nxa3 {[%clk 0:02:53.1]} 17... Bxa3 {[%clk 0:02:05.1]} 18. Bxa8
{[%clk 0:02:53]} 1-0

[Event "*** Titled Tuesday 3|2 Blitz"]
[Site "Chess.com"]
[Date "2015.02.24"]
[Round "9"]
[White "gumersindo"]
[Black "Aragon"]
[Result "0-1"]
[WhiteElo "2100"]
[BlackElo "2043"]
[TimeControl "180+2"]
[EndTime "12:55:04 PST"]
[Termination "Aragon won by checkmate"]

1. d4 {[%clk 0:02:46.8]} 1... e5 {[%clk 0:02:54.2]} 2. dxe5 {[%clk 0:02:47.4]}
2... Nc6 {[%clk 0:02:54.9]} 3. Nf3 {[%clk 0:02:47.9]} 3... d6 {[%clk 0:02:56]}
4. exd6 {[%clk 0:02:48.4]} 4... Bxd6 {[%clk 0:02:57.9]} 5. g3 {[%clk 0:02:46.1]}
5... Bg4 {[%clk 0:02:59.1]} 6. Bg2 {[%clk 0:02:46.6]} 6... Nf6 {[%clk
0:03:00.3]} 7. O-O {[%clk 0:02:47.2]} 7... Qe7 {[%clk 0:03:01.7]} 8. Nc3 {[%clk
0:02:47.4]} 8... O-O-O {[%clk 0:03:02.8]} 9. Qe1 {[%clk 0:02:47.4]} 9... h5
{[%clk 0:03:02.9]} 10. Bg5 {[%clk 0:02:46.9]} 10... Ne5 {[%clk 0:02:57.7]} 11.
Nd5 {[%clk 0:02:42]} 11... Qe6 {[%clk 0:02:57.7]} 12. Nxf6 {[%clk 0:02:40.4]}
12... gxf6 {[%clk 0:02:54.7]} 13. Bf4 {[%clk 0:02:41.1]} 13... h4 {[%clk
0:02:50.3]} 14. Qa5 {[%clk 0:02:36.9]} 14... Nc6 {[%clk 0:02:46.7]} 15. Qa4
{[%clk 0:02:24.4]} 15... hxg3 {[%clk 0:02:43.8]} 16. Bxg3 {[%clk 0:02:23.6]}
16... Bh3 {[%clk 0:02:40.4]} 17. Rad1 {[%clk 0:02:17.8]} 17... Bxg2 {[%clk
0:02:39.5]} 18. Kxg2 {[%clk 0:02:18.2]} 18... Qh3+ {[%clk 0:02:33.3]} 19. Kg1
{[%clk 0:02:19.2]} 19... Ne5 {[%clk 0:02:30.1]} 20. Qxa7 {[%clk 0:02:02.8]}
20... Rdg8 {[%clk 0:02:28.4]} 21. Qa8+ {[%clk 0:01:56.3]} 21... Kd7 {[%clk
0:02:28.1]} 22. Qxb7 {[%clk 0:01:57.2]} 22... Nxf3+ {[%clk 0:02:23.3]} 23. Qxf3
{[%clk 0:01:46.2]} 23... Qxh2# {[%clk 0:02:21.8]} 0-1

[Event "*** Titled Tuesday 3|2 Blitz"]
[Site "Chess.com"]
[Date "2015.02.24"]
[Round "9"]
[White "FlySooHigh"]
[Black "alturas_pacificas"]
[Result "1-0"]
[WhiteElo "2325"]
[BlackElo "2065"]
[TimeControl "180+2"]
[EndTime "12:55:27 PST"]
[Termination "FlySooHigh won by resignation"]

1. e4 {[%clk 0:03:00]} 1... c6 {[%clk 0:02:58.6]} 2. c4 {[%clk 0:03:00.1]} 2...
d5 {[%clk 0:02:59.8]} 3. cxd5 {[%clk 0:03:01.1]} 3... cxd5 {[%clk 0:03:00.3]} 4.
exd5 {[%clk 0:03:02]} 4... Qxd5 {[%clk 0:03:01.2]} 5. Nc3 {[%clk 0:03:02.4]}
5... Qd8 {[%clk 0:03:02.7]} 6. d4 {[%clk 0:03:03.2]} 6... Nf6 {[%clk 0:03:04.2]}
7. Nf3 {[%clk 0:03:03.7]} 7... e6 {[%clk 0:03:05.7]} 8. Bd3 {[%clk 0:03:03]}
8... Be7 {[%clk 0:03:03.7]} 9. Bg5 {[%clk 0:03:02.9]} 9... b6 {[%clk 0:03:04.9]}
10. Rc1 {[%clk 0:03:01]} 10... Bb7 {[%clk 0:03:05.8]} 11. Bb1 {[%clk 0:02:55.7]}
11... h6 {[%clk 0:03:03.1]} 12. Bh4 {[%clk 0:02:49.4]} 12... Nc6 {[%clk
0:03:03.9]} 13. O-O {[%clk 0:02:46]} 13... Nb4 {[%clk 0:02:59]} 14. Ne5 {[%clk
0:02:34.6]} 14... Nbd5 {[%clk 0:02:58.8]} 15. Qa4+ {[%clk 0:02:13.5]} 15... Kf8
{[%clk 0:02:57.1]} 16. Bg3 {[%clk 0:01:51.9]} 16... Nxc3 {[%clk 0:02:52.1]} 17.
bxc3 {[%clk 0:01:51.4]} 17... Qd5 {[%clk 0:02:44]} 18. f3 {[%clk 0:01:51.9]}
18... g6 {[%clk 0:02:31.3]} 19. Rce1 {[%clk 0:01:37]} 19... Kg7 {[%clk
0:02:31.3]} 20. Be4 {[%clk 0:01:34.5]} 1-0

[Event "*** Titled Tuesday 3|2 Blitz"]
[Site "Chess.com"]
[Date "2015.02.24"]
[Round "9"]
[White "igorkovalenko"]
[Black "AkshatChandra"]
[Result "0-1"]
[WhiteElo "2465"]
[BlackElo "2490"]
[TimeControl "180+2"]
[EndTime "12:55:30 PST"]
[Termination "AkshatChandra won by resignation"]

1. e4 {[%clk 0:02:49.3]} 1... c5 {[%clk 0:02:58.6]} 2. Nf3 {[%clk 0:02:50.7]}
2... e6 {[%clk 0:02:54.6]} 3. d4 {[%clk 0:02:51.8]} 3... cxd4 {[%clk 0:02:56.5]}
4. Nxd4 {[%clk 0:02:53.7]} 4... Nc6 {[%clk 0:02:58.2]} 5. Nc3 {[%clk 0:02:54.9]}
5... Qc7 {[%clk 0:02:59.5]} 6. Be3 {[%clk 0:02:55.5]} 6... a6 {[%clk 0:03:00.4]}
7. Bd3 {[%clk 0:02:56.8]} 7... Nf6 {[%clk 0:03:01]} 8. O-O {[%clk 0:02:53.3]}
8... Nxd4 {[%clk 0:03:02.1]} 9. Bxd4 {[%clk 0:02:54.5]} 9... Bc5 {[%clk
0:03:03.8]} 10. Bxc5 {[%clk 0:02:56.1]} 10... Qxc5 {[%clk 0:03:05.4]} 11. Kh1
{[%clk 0:02:57.7]} 11... e5 {[%clk 0:03:02.8]} 12. a4 {[%clk 0:02:58.5]} 12...
d6 {[%clk 0:02:56.9]} 13. f4 {[%clk 0:02:56.7]} 13... O-O {[%clk 0:02:55]} 14.
Qe1 {[%clk 0:02:57]} 14... Be6 {[%clk 0:02:49.9]} 15. Qh4 {[%clk 0:02:57.7]}
15... exf4 {[%clk 0:02:32.3]} 16. Rxf4 {[%clk 0:02:58]} 16... g5 {[%clk
0:02:28.5]} 17. Qf2 {[%clk 0:02:53.7]} 17... gxf4 {[%clk 0:02:26]} 18. Qxf4
{[%clk 0:02:53.1]} 18... Qe5 {[%clk 0:02:26.6]} 19. Qh4 {[%clk 0:02:54.8]} 19...
Kh8 {[%clk 0:02:22.4]} 20. Rf1 {[%clk 0:02:55.4]} 20... Nd7 {[%clk 0:02:16.8]}
21. Ne2 {[%clk 0:02:49.4]} 21... Nc5 {[%clk 0:02:13.2]} 22. Ng1 {[%clk
0:02:46.6]} 22... Nxd3 {[%clk 0:02:12.4]} 23. cxd3 {[%clk 0:02:47.7]} 23... f5
{[%clk 0:02:12.7]} 24. Nf3 {[%clk 0:02:41.1]} 24... fxe4 {[%clk 0:02:09]} 25.
dxe4 {[%clk 0:02:42.3]} 25... Qf6 {[%clk 0:02:06.7]} 26. Qg3 {[%clk 0:02:42.7]}
26... Rg8 {[%clk 0:02:04.1]} 27. Qxd6 {[%clk 0:02:42]} 27... Raf8 {[%clk
0:02:00.5]} 28. Qd2 {[%clk 0:02:40]} 28... Bg4 {[%clk 0:01:56.4]} 29. e5 {[%clk
0:02:38.7]} 29... Qe6 {[%clk 0:01:54.5]} 30. Qe3 {[%clk 0:02:38.3]} 30... Bxf3
{[%clk 0:01:55.6]} 31. gxf3 {[%clk 0:02:39.7]} 31... Rf5 {[%clk 0:01:51.3]} 32.
Re1 {[%clk 0:02:40.6]} 32... Qd5 {[%clk 0:01:41.3]} 0-1

[Event "*** Titled Tuesday 3|2 Blitz"]
[Site "Chess.com"]
[Date "2015.02.24"]
[Round "9"]
[White "DoctorMove"]
[Black "raskolnnikov"]
[Result "0-1"]
[WhiteElo "1759"]
[BlackElo "2266"]
[TimeControl "180+2"]
[EndTime "12:56:37 PST"]
[Termination "raskolnnikov won by resignation"]

1. e4 {[%clk 0:03:00]} 1... f6 {[%clk 0:02:59.1]} 2. d4 {[%clk 0:02:59.7]} 2...
c5 {[%clk 0:03:01]} 3. Nf3 {[%clk 0:02:59.8]} 3... cxd4 {[%clk 0:03:02.9]} 4.
Nxd4 {[%clk 0:03:00.2]} 4... a6 {[%clk 0:03:04.6]} 5. g3 {[%clk 0:03:00.4]} 5...
e6 {[%clk 0:03:05.8]} 6. Bg2 {[%clk 0:03:00.8]} 6... h5 {[%clk 0:03:07.5]} 7. h4
{[%clk 0:03:00.7]} 7... Kf7 {[%clk 0:03:08.5]} 8. O-O {[%clk 0:03:01]} 8... Ne7
{[%clk 0:03:09.8]} 9. c4 {[%clk 0:03:00.2]} 9... Nbc6 {[%clk 0:03:11.1]} 10. Nc2
{[%clk 0:02:57.2]} 10... Qc7 {[%clk 0:03:10.3]} 11. Nc3 {[%clk 0:02:51.4]} 11...
b6 {[%clk 0:03:09]} 12. Bf4 {[%clk 0:02:48.8]} 12... Ne5 {[%clk 0:03:09.4]} 13.
b3 {[%clk 0:02:38.2]} 13... N7g6 {[%clk 0:03:09.4]} 14. Be3 {[%clk 0:02:35.6]}
14... b5 {[%clk 0:03:10.7]} 15. f4 {[%clk 0:01:46.8]} 15... Ng4 {[%clk 0:03:11]}
16. Bd4 {[%clk 0:01:32.2]} 16... bxc4 {[%clk 0:03:10.3]} 17. b4 {[%clk
0:01:31.2]} 17... Rb8 {[%clk 0:03:07.4]} 18. a3 {[%clk 0:01:30.6]} 18... Bb7
{[%clk 0:03:00.6]} 19. Qe2 {[%clk 0:01:26.9]} 19... Bd6 {[%clk 0:02:18]} 20.
Rad1 {[%clk 0:01:20.5]} 20... e5 {[%clk 0:02:19]} 21. fxe5 {[%clk 0:01:17.5]}
21... Bxe5 {[%clk 0:02:12.4]} 22. Nd5 {[%clk 0:01:15.3]} 22... Bxd5 {[%clk
0:02:13]} 23. exd5 {[%clk 0:01:15]} 23... Bxd4+ {[%clk 0:02:12]} 24. Nxd4 {[%clk
0:01:13.3]} 24... Qxg3 {[%clk 0:02:12.8]} 25. Rf3 {[%clk 0:01:01.9]} 25... Qh2+
{[%clk 0:02:10.8]} 26. Kf1 {[%clk 0:01:01.6]} 26... Nf4 {[%clk 0:02:05.7]} 27.
Rxf4 {[%clk 0:00:57]} 27... Qxf4+ {[%clk 0:02:06]} 28. Nf3 {[%clk 0:00:52.8]}
28... Ne3+ {[%clk 0:02:05.5]} 0-1

[Event "*** Titled Tuesday 3|2 Blitz"]
[Site "Chess.com"]
[Date "2015.02.24"]
[Round "9"]
[White "Hafez_Bakr"]
[Black "gawk"]
[Result "0-1"]
[WhiteElo "1805"]
[BlackElo "2049"]
[TimeControl "180+2"]
[EndTime "12:57:11 PST"]
[Termination "gawk won by resignation"]

1. e4 {[%clk 0:02:31.3]} 1... c6 {[%clk 0:02:44.1]} 2. d4 {[%clk 0:02:07.2]}
2... d5 {[%clk 0:02:43.5]} 3. Nc3 {[%clk 0:02:07.4]} 3... dxe4 {[%clk
0:02:44.2]} 4. Nxe4 {[%clk 0:02:08.1]} 4... Bf5 {[%clk 0:02:44.8]} 5. Ng3 {[%clk
0:02:09.7]} 5... Bg6 {[%clk 0:02:44.2]} 6. h4 {[%clk 0:02:11.6]} 6... h6 {[%clk
0:02:45.1]} 7. h5 {[%clk 0:02:12.5]} 7... Bh7 {[%clk 0:02:46.4]} 8. Bf4 {[%clk
0:02:08.8]} 8... e6 {[%clk 0:02:40.5]} 9. Nf3 {[%clk 0:02:09.3]} 9... Nd7 {[%clk
0:02:40.3]} 10. c3 {[%clk 0:02:05.2]} 10... Ngf6 {[%clk 0:02:38.3]} 11. Bd3
{[%clk 0:02:05.3]} 11... Bxd3 {[%clk 0:02:37.7]} 12. Qxd3 {[%clk 0:02:06.2]}
12... c5 {[%clk 0:02:38.9]} 13. O-O-O {[%clk 0:02:04.7]} 13... Qa5 {[%clk
0:02:37]} 14. Kb1 {[%clk 0:02:03.2]} 14... Be7 {[%clk 0:02:34.3]} 15. dxc5
{[%clk 0:02:01.5]} 15... Nxc5 {[%clk 0:02:33.7]} 16. Qc4 {[%clk 0:01:56.3]}
16... b5 {[%clk 0:02:30.6]} 17. Qe2 {[%clk 0:01:50.1]} 17... b4 {[%clk 0:02:26]}
18. cxb4 {[%clk 0:01:44.5]} 18... Qxb4 {[%clk 0:02:26.6]} 19. Rd4 {[%clk
0:01:42.6]} 19... Qb6 {[%clk 0:02:21.9]} 20. Rhd1 {[%clk 0:01:39.2]} 20... O-O
{[%clk 0:02:21.9]} 21. Rc4 {[%clk 0:01:26.9]} 21... Nd5 {[%clk 0:02:20.5]} 22.
Be3 {[%clk 0:01:13.7]} 22... Rab8 {[%clk 0:02:01.7]} 23. Ne5 {[%clk 0:01:09.4]}
23... Nxe3 {[%clk 0:01:59.5]} 24. fxe3 {[%clk 0:01:07.9]} 24... Bf6 {[%clk
0:01:51.8]} 25. Nd3 {[%clk 0:00:45]} 25... Nxd3 {[%clk 0:01:48.9]} 26. Rxd3
{[%clk 0:00:44.8]} 26... Qxb2+ {[%clk 0:01:49.6]} 27. Qxb2 {[%clk 0:00:44.7]}
27... Rxb2+ {[%clk 0:01:51.1]} 28. Kc1 {[%clk 0:00:45.7]} 28... Rxa2 {[%clk
0:01:52.5]} 29. Rc7 {[%clk 0:00:44.7]} 29... Be5 {[%clk 0:01:52.6]} 0-1

[Event "*** Titled Tuesday 3|2 Blitz"]
[Site "Chess.com"]
[Date "2015.02.24"]
[Round "9"]
[White "lukas_111111"]
[Black "bsmail"]
[Result "1-0"]
[WhiteElo "2167"]
[BlackElo "2117"]
[TimeControl "180+2"]
[EndTime "12:57:29 PST"]
[Termination "lukas_111111 won by resignation"]

1. e4 {[%clk 0:03:00]} 1... c5 {[%clk 0:02:58.9]} 2. Nf3 {[%clk 0:02:57.6]} 2...
d6 {[%clk 0:02:59.4]} 3. d4 {[%clk 0:02:58.5]} 3... cxd4 {[%clk 0:03:00.8]} 4.
Nxd4 {[%clk 0:03:00]} 4... Nf6 {[%clk 0:03:02.1]} 5. Nc3 {[%clk 0:03:01.3]} 5...
g6 {[%clk 0:03:03.5]} 6. Be3 {[%clk 0:02:59.9]} 6... Bg7 {[%clk 0:03:04.7]} 7.
f3 {[%clk 0:03:01.2]} 7... Nc6 {[%clk 0:03:05.8]} 8. Qd2 {[%clk 0:03:02.7]} 8...
O-O {[%clk 0:03:06.6]} 9. g4 {[%clk 0:03:03.8]} 9... Nxd4 {[%clk 0:03:07]} 10.
Bxd4 {[%clk 0:03:04.7]} 10... Qa5 {[%clk 0:03:07.9]} 11. h4 {[%clk 0:03:05.4]}
11... Be6 {[%clk 0:03:08.8]} 12. h5 {[%clk 0:03:06.7]} 12... Rfc8 {[%clk
0:03:09.8]} 13. a3 {[%clk 0:03:08]} 13... Rab8 {[%clk 0:03:09.4]} 14. Qh2 {[%clk
0:03:07.7]} 14... Nxg4 {[%clk 0:02:53.5]} 15. Qg1 {[%clk 0:02:41.1]} 15... Rxc3
{[%clk 0:02:37.1]} 16. bxc3 {[%clk 0:02:38.1]} 16... Ne5 {[%clk 0:02:22.8]} 17.
Be2 {[%clk 0:02:36.5]} 17... Bc4 {[%clk 0:02:22.9]} 18. hxg6 {[%clk 0:02:35.1]}
18... hxg6 {[%clk 0:02:14.3]} 19. Qh2 {[%clk 0:02:23.8]} 19... Bxe2 {[%clk
0:01:54.6]} 20. Kxe2 {[%clk 0:02:17.6]} 20... Qb5+ {[%clk 0:01:55.2]} 21. Kf2
{[%clk 0:02:17.8]} 21... Rc8 {[%clk 0:01:03.6]} 22. Rab1 {[%clk 0:02:15.2]}
22... Qc6 {[%clk 0:01:00.5]} 23. Qh4 {[%clk 0:02:11.7]} 23... e6 {[%clk
0:00:16.9]} 24. Qe7 {[%clk 0:02:04.8]} 24... Qc7 {[%clk 0:00:11.2]} 25. Rxb7
{[%clk 0:02:01.6]} 25... Qxe7 {[%clk 0:00:10.9]} 26. Rxe7 {[%clk 0:02:02.2]}
26... Nc6 {[%clk 0:00:12.1]} 27. Bxg7 {[%clk 0:01:59.7]} 27... Nxe7 {[%clk
0:00:12.5]} 28. Bf6 {[%clk 0:02:00.6]} 1-0